fUST/lending_fUST_20241025
["ID","MTS","AMOUNT","RATE_DAILY","PERIOD"]
[340796536,1729847439436,-418.762068,0.00013688,2]
[340796537,1729847439446,-151.0,0.00013688,2]
[340796538,1729847439456,-151.0,0.00013688,2]
[340796539,1729847439466,-418.762068,0.00013688,2]
[340796540,1729847439475,-418.762068,0.00013688,2]
[340796541,1729847439485,-151.0,0.00013688,2]
[340796542,1729847439495,-151.0,0.00013688,2]
[340796543,1729847439504,-155.151201,0.00013688,2]
[340796544,1729847439514,-151.0,0.00013688,2]
[340796545,1729847439524,-151.0,0.00013688,2]
[340796546,1729847439533,-763.003278,0.00013688,2]
[340796547,1729847439542,-154.750633,0.00013688,2]
[340796548,1729847439552,-151.0,0.00013688,2]
[340796549,1729847439563,-763.003278,0.00013688,2]
[340796550,1729847439576,-151.0,0.00013688,2]
[340796551,1729847439586,-151.0,0.00013688,2]
[340796552,1729847439595,-282.813449,0.00013688,2]
[340796553,1729847439605,-504.866252,0.00013688,2]
[340796554,1729847439615,-504.866252,0.00013688,2]
[340796555,1729847439625,-504.866252,0.00013688,2]
[340796556,1729847439635,-59.84871134,0.00013688,2]
[340796577,1729847443426,-445.01754066,0.00013688,2]
[340796578,1729847443436,-312.018906,0.00013688,2]
[340796580,1729847443445,-312.018906,0.00013688,2]
[340796582,1729847443455,-151.0,0.00013688,2]
[340796584,1729847443464,-312.018906,0.00013688,2]
[340796586,1729847443474,-151.0,0.00013688,2]
[340796587,1729847443483,-312.018906,0.00013688,2]
[340796588,1729847443492,-151.0,0.00013688,2]
[340796589,1729847443502,-152.896704,0.00013688,2]
[340796590,1729847443512,-151.0,0.00013688,2]
[340796591,1729847443708,-151.0,0.00013688,2]
[340796592,1729847443718,-346.115521,0.00013688,2]
[340796593,1729847443727,-346.115521,0.00013688,2]
[340796594,1729847443738,-256.77908917,0.00013688,2]
[340796595,1729847443750,-89.33643183,0.00013688,2]
[340796596,1729847443761,-289.434098,0.00013688,2]
[340796597,1729847443770,-53.99412261,0.00013688,2]
[340796608,1729847571293,210.12,0.00010959,2]
[340796615,1729848542949,188388.325009,0.0001,2]
[340796657,1729848632451,-481.7879109,0.00012105,2]
[340796659,1729848632461,-973.85555105,0.00012105,2]
[340796661,1729848632474,-1400.01032945,0.00012105,2]
[340796663,1729848632486,-626.1341195,0.00012105,2]
[340796665,1729848632496,-37.3658805,0.00012206,2]
[340796733,1729848638663,-656.64,0.00012115,2]
[340796742,1729848638744,-1330.4166275,0.00012115,2]
[340796744,1729848638754,-262.6341195,0.00012206,2]
[340796746,1729848638764,-300.0,0.00012206,2]
[340796748,1729848638774,-9658.1574605,0.00012207,2]
[340796750,1729848638784,-420.0,0.00013397,2]
[340796751,1729848638794,-420.0,0.00013427,2]
[340796752,1729848638804,-189.347045,0.00013434,2]
[340796754,1729848638813,-529.404964,0.00013434,2]
[340796756,1729848638823,-528.0,0.00013553,2]
[340796758,1729848638832,-22.8198418,0.00013553,2]
[340796760,1729848638844,-898.32082613,0.00013553,2]
[340796875,1729848640642,-229.85933207,0.00013553,2]
[340796877,1729848640653,-189.347045,0.00013602,2]
[340796879,1729848640662,-77.15889608,0.00013602,2]
[340796885,1729848640702,-452.24606792,0.00013602,2]
[340796887,1729848640711,-205.70145511,0.00013678,2]
[340796888,1729848640721,-2666.05247697,0.00013678,2]
[340796891,1729848640737,-3704.39276817,0.00013678,2]
[340796895,1729848640769,-892.190604,0.00013678,2]
[340796897,1729848640780,-9721.50381726,0.00013678,2]
[340796899,1729848640790,-3142.76758225,0.00013678,2]
[340796901,1729848640800,-635.86560973,0.00013687,2]
[340796903,1729848640809,-25114.32691046,0.00013687,2]
[340796905,1729848640820,-172.869,0.00013688,2]
[340796907,1729848640829,-27617.66708024,0.00013688,2]
[340797170,1729848643550,-1353.26088849,0.00013688,2]
[340797510,1729848646598,-2397.0,0.00013539,2]
[340797512,1729848646608,-1027.3,0.00013688,2]
[340797514,1729848646620,-7366.87929737,0.00013688,2]
[340797516,1729848646630,-6914.08868095,0.00013688,2]
[340797518,1729848646640,-406.0,0.0001369,2]
[340797520,1729848646650,-299.06994253,0.00013698,2]
[340797522,1729848646660,-500.0,0.00013698,2]
[340797524,1729848646669,-500.0,0.00013698,2]
[340797526,1729848646679,-500.0,0.00013698,2]
[340797528,1729848646688,-500.0,0.00013698,2]
[340797530,1729848646698,-222.19391761,0.00013698,2]
[340797532,1729848646708,-500.0,0.00013698,2]
[340797534,1729848646718,-500.0,0.00013698,2]
[340797536,1729848646728,-500.0,0.00013698,2]
[340797538,1729848646738,-382.86379931,0.00013698,2]
[340797540,1729848646747,-500.0,0.00013698,2]
[340797542,1729848646756,-636.79951236,0.00013698,2]
[340797544,1729848646766,-500.0,0.00013698,2]
[340797546,1729848646775,-500.0,0.00013698,2]
[340797548,1729848646785,-500.0,0.00013698,2]
[340797550,1729848646794,-500.0,0.00013698,2]
[340797551,1729848646804,-183.89814856,0.00013698,2]
[340797553,1729848646815,-151.0,0.00013698,2]
[340797555,1729848646824,-151.0,0.00013698,2]
[340797557,1729848646834,-155.62836295,0.00013698,2]
[340797559,1729848646843,-151.0,0.00013698,2]
[340797561,1729848646854,-151.0,0.00013698,2]
[340797563,1729848646863,-151.0,0.00013698,2]
[340797565,1729848646873,-151.0,0.00013698,2]
[340797567,1729848646883,-151.0,0.00013698,2]
[340797569,1729848646895,-151.0,0.00013698,2]
[340797572,1729848646906,-151.0,0.00013698,2]
[340797574,1729848646916,-153.241741,0.00013698,2]
[340797576,1729848646926,-151.0,0.00013698,2]
[340797578,1729848646935,-203.93135,0.00013698,2]
[340797580,1729848646945,-500.0,0.00013698,2]
[340797582,1729848646955,-176.484388,0.00013698,2]
[340797584,1729848646965,-671.21,0.00013698,2]
[340797586,1729848646974,-151.0,0.00013698,2]
[340797588,1729848646984,-151.0,0.00013698,2]
[340797590,1729848646993,-151.0,0.00013698,2]
[340797592,1729848647004,-151.0,0.00013698,2]
[340797594,1729848647014,-151.0,0.00013698,2]
[340797596,1729848647023,-151.0,0.00013698,2]
[340797598,1729848647034,-151.0,0.00013698,2]
[340797600,1729848647044,-176.066402,0.00013698,2]
[340797602,1729848647055,-500.0,0.00013698,2]
[340797604,1729848647065,-1015.91,0.00013698,2]
[340797606,1729848647076,-500.0,0.00013698,2]
[340797608,1729848647085,-151.0,0.00013698,2]
[340797610,1729848647095,-151.0,0.00013698,2]
[340797612,1729848647105,-151.0,0.00013698,2]
[340797614,1729848647115,-151.0,0.00013698,2]
[340797616,1729848647128,-151.0,0.00013698,2]
[340797618,1729848647139,-151.0,0.00013698,2]
[340797620,1729848647150,-500.0,0.00013698,2]
[340797622,1729848647161,-500.0,0.00013698,2]
[340797624,1729848647170,-596.39323174,0.00013698,2]
[340797626,1729848647181,-492.79574228,0.00013698,2]
[340797628,1729848647191,-500.0,0.00013698,2]
[340797630,1729848647200,-151.0,0.00013698,2]
[340797632,1729848647210,-151.0,0.00013698,2]
[340797634,1729848647220,-151.0,0.00013698,2]
[340797636,1729848647230,-151.0,0.00013698,2]
[340797638,1729848647239,-151.0,0.00013698,2]
[340797640,1729848647251,-151.0,0.00013698,2]
[340797642,1729848647261,-151.0,0.00013698,2]
[340797644,1729848647272,-151.0,0.00013698,2]
[340797646,1729848647282,-156.014671,0.00013698,2]
[340797648,1729848647292,-500.0,0.00013698,2]
[340797650,1729848647305,-500.0,0.00013698,2]
[340797653,1729848647317,-774.36,0.00013698,2]
[340797655,1729848647329,-500.0,0.00013698,2]
[340797657,1729848647339,-599.50571842,0.00013698,2]
[340797659,1729848647348,-151.0,0.00013698,2]
[340797661,1729848647359,-151.0,0.00013698,2]
[340797663,1729848647369,-884.56,0.00013698,2]
[340797665,1729848647380,-151.0,0.00013698,2]
[340797667,1729848647391,-151.0,0.00013698,2]
[340797669,1729848647402,-151.0,0.00013698,2]
[340797671,1729848647411,-151.0,0.00013698,2]
[340797674,1729848647423,-151.0,0.00013698,2]
[340797676,1729848647433,-272.558883,0.00013698,2]
[340797678,1729848647444,-500.0,0.00013698,2]
[340797680,1729848647453,-500.0,0.00013698,2]
[340797682,1729848647464,-151.0,0.00013698,2]
[340797684,1729848647474,-264.479035,0.00013698,2]
[340797686,1729848647483,-500.0,0.00013698,2]
[340797687,1729848647493,-1352.93,0.00013698,2]
[340797688,1729848647502,-151.0,0.00013698,2]
[340797689,1729848647511,-151.0,0.00013698,2]
[340797690,1729848647521,-288.896661,0.00013698,2]
[340797691,1729848647530,-500.0,0.00013698,2]
[340797692,1729848647539,-987.19,0.00013698,2]
[340797693,1729848647549,-151.0,0.00013698,2]
[340797694,1729848647559,-151.0,0.00013698,2]
[340797695,1729848647569,-151.0,0.00013698,2]
[340797697,1729848647580,-151.0,0.00013698,2]
[340797699,1729848647590,-151.0,0.00013698,2]
[340797701,1729848647600,-151.0,0.00013698,2]
[340797704,1729848647610,-151.0,0.00013698,2]
[340797706,1729848647623,-151.0,0.00013698,2]
[340797708,1729848647634,-159.672354,0.00013698,2]
[340797710,1729848647645,-500.0,0.00013698,2]
[340797712,1729848647655,-586.75512603,0.00013698,2]
[340797714,1729848647665,-500.0,0.00013698,2]
[340797716,1729848647674,-500.0,0.00013698,2]
[340797718,1729848647684,-151.0,0.00013698,2]
[340797720,1729848647694,-151.0,0.00013698,2]
[340797722,1729848647703,-151.0,0.00013698,2]
[340797724,1729848647713,-296.774403,0.00013698,2]
[340797726,1729848647722,-500.0,0.00013698,2]
[340797728,1729848647732,-500.0,0.00013698,2]
[340797730,1729848647742,-860.19,0.00013698,2]
[340797732,1729848647751,-500.0,0.00013698,2]
[340797734,1729848647762,-500.0,0.00013698,2]
[340797737,1729848647773,-500.0,0.00013698,2]
[340797739,1729848647784,-596.19,0.00013698,2]
[340797741,1729848647793,-728.99,0.00013698,2]
[340797743,1729848647803,-601.90288121,0.00013698,2]
[340797745,1729848647813,-565.85427693,0.00013698,2]
[340797747,1729848647822,-500.0,0.00013698,2]
[340797749,1729848647832,-151.0,0.00013698,2]
[340797751,1729848647841,-151.0,0.00013698,2]
[340797753,1729848647851,-151.0,0.00013698,2]
[340797755,1729848647860,-151.0,0.00013698,2]
[340797757,1729848647870,-151.0,0.00013698,2]
[340797759,1729848647880,-152.036263,0.00013698,2]
[340797761,1729848647889,-1086.25,0.00013698,2]
[340797762,1729848647898,-502.4515437,0.00013698,2]
[340797764,1729848647908,-151.0,0.00013698,2]
[340797766,1729848647918,-151.0,0.00013698,2]
[340797768,1729848647928,-153.736505,0.00013698,2]
[340797770,1729848647938,-500.0,0.00013698,2]
[340797772,1729848647948,-2083.67,0.00013698,2]
[340797774,1729848647958,-2083.67,0.00013698,2]
[340797776,1729848647967,-2083.67,0.00013698,2]
[340797778,1729848647977,-2083.67,0.00013698,2]
[340797780,1729848647987,-2083.67,0.00013698,2]
[340797782,1729848647998,-2083.67,0.00013698,2]
[340797784,1729848648007,-2083.67,0.00013698,2]
[340797787,1729848648017,-2083.67,0.00013698,2]
[340797789,1729848648027,-2083.67,0.00013698,2]
[340797791,1729848648037,-2083.67,0.00013698,2]
[340797793,1729848648046,-2083.67,0.00013698,2]
[340797795,1729848648056,-2083.67,0.00013698,2]
[340797797,1729848648067,-2083.67,0.00013698,2]
[340797799,1729848648077,-2083.67,0.00013698,2]
[340797801,1729848648087,-2083.67,0.00013698,2]
[340797803,1729848648097,-2083.67,0.00013698,2]
[340797805,1729848648106,-2083.67,0.00013698,2]
[340797807,1729848648116,-2083.67,0.00013698,2]
[340797809,1729848648125,-2083.67,0.00013698,2]
[340797811,1729848648137,-2083.67,0.00013698,2]
[340797813,1729848648148,-2083.67,0.00013698,2]
[340797815,1729848648158,-2083.67,0.00013698,2]
[340797817,1729848648169,-2083.67,0.00013698,2]
[340797820,1729848648181,-2083.7408253,0.00013698,2]
[340797822,1729848648191,-500.0,0.00013698,2]
[340797824,1729848648201,-788.86,0.00013698,2]
[340797826,1729848648211,-626.88,0.00013698,2]
[340797828,1729848648222,-550.51,0.00013698,2]
[340797830,1729848648232,-154.619804,0.00013698,2]
[340797832,1729848648243,-1175.61,0.00013698,2]
[340797834,1729848648256,-746.58,0.00013698,2]
[340797836,1729848648267,-690.91,0.00013698,2]
[340797838,1729848648276,-151.0,0.00013698,2]
[340797840,1729848648286,-151.0,0.00013698,2]
[340797842,1729848648297,-151.0,0.00013698,2]
[340797844,1729848648307,-154.848495,0.00013698,2]
[340797846,1729848648317,-771.4,0.00013698,2]
[340797848,1729848648329,-209.191749,0.00013698,2]
[340797850,1729848648338,-209.191749,0.00013698,2]
[340797852,1729848648348,-209.191749,0.00013698,2]
[340797854,1729848648359,-209.191749,0.00013698,2]
[340797856,1729848648369,-151.0,0.00013698,2]
[340797858,1729848648379,-209.191749,0.00013698,2]
[340797860,1729848648389,-151.0,0.00013698,2]
[340797862,1729848648399,-209.191749,0.00013698,2]
[340797864,1729848648409,-209.191749,0.00013698,2]
[340797866,1729848648418,-209.191749,0.00013698,2]
[340797868,1729848648428,-209.191749,0.00013698,2]
[340797870,1729848648439,-209.191749,0.00013698,2]
[340797873,1729848648448,-209.191749,0.00013698,2]
[340797875,1729848648458,-209.191749,0.00013698,2]
[340797877,1729848648468,-209.191749,0.00013698,2]
[340797879,1729848648478,-209.191749,0.00013698,2]
[340797881,1729848648488,-209.191749,0.00013698,2]
[340797883,1729848648499,-209.191749,0.00013698,2]
[340797885,1729848648509,-209.191749,0.00013698,2]
[340797887,1729848648519,-209.191749,0.00013698,2]
[340797889,1729848648529,-209.191749,0.00013698,2]
[340797891,1729848648539,-209.191748,0.00013698,2]
[340797893,1729848648549,-500.0,0.00013698,2]
[340797895,1729848648559,-683.45,0.00013698,2]
[340797897,1729848648569,-731.41,0.00013698,2]
[340797899,1729848648580,-500.0,0.00013698,2]
[340797901,1729848648590,-500.0,0.00013698,2]
[340797903,1729848648599,-573.67,0.00013698,2]
[340797905,1729848648609,-151.0,0.00013698,2]
[340797907,1729848648619,-151.0,0.00013698,2]
[340797908,1729848648628,-151.0,0.00013698,2]
[340797909,1729848648638,-1487.96,0.00013698,2]
[340797910,1729848648647,-151.0,0.00013698,2]
[340797911,1729848648657,-151.0,0.00013698,2]
[340797912,1729848648667,-151.0,0.00013698,2]
[340797913,1729848648677,-153.916123,0.00013698,2]
[340797914,1729848648686,-583.92,0.00013698,2]
[340797915,1729848648696,-500.0,0.00013698,2]
[340797917,1729848648707,-2752.01,0.00013698,2]
[340797919,1729848648717,-151.0,0.00013698,2]
[340797921,1729848648726,-151.0,0.00013698,2]
[340797923,1729848648737,-1369.68,0.00013698,2]
[340797925,1729848648748,-151.0,0.00013698,2]
[340797928,1729848648760,-151.0,0.00013698,2]
[340797930,1729848648770,-152.192664,0.00013698,2]
[340797932,1729848648780,-643.24,0.00013698,2]
[340797934,1729848648790,-2676.22,0.00013698,2]
[340797936,1729848648800,-1504.82,0.00013698,2]
[340797938,1729848648809,-153.626417,0.00013698,2]
[340797940,1729848648821,-1113.55,0.00013698,2]
[340797942,1729848648831,-1306.24,0.00013698,2]
[340797944,1729848648842,-512.52,0.00013698,2]
[340797946,1729848648852,-863.83,0.00013698,2]
[340797949,1729848648862,-500.0,0.00013698,2]
[340797951,1729848648872,-1077.8,0.00013698,2]
[340797953,1729848648882,-151.0,0.00013698,2]
[340797955,1729848648892,-1256.72,0.00013698,2]
[340797957,1729848648901,-500.0,0.00013698,2]
[340797958,1729848648911,-984.06,0.00013698,2]
[340797961,1729848648921,-500.0,0.00013698,2]
[340797963,1729848648931,-151.0,0.00013698,2]
[340797965,1729848648941,-500.0,0.00013698,2]
[340797967,1729848648950,-151.0,0.00013698,2]
[340797969,1729848648960,-151.0,0.00013698,2]
[340797971,1729848648970,-151.0,0.00013698,2]
[340797973,1729848648981,-151.0,0.00013698,2]
[340797975,1729848648992,-192.596536,0.00013698,2]
[340797977,1729848649001,-711.09,0.00013698,2]
[340797979,1729848649011,-850.7,0.00013698,2]
[340797981,1729848649021,-500.0,0.00013698,2]
[340797983,1729848649031,-500.0,0.00013698,2]
[340797985,1729848649040,-500.0,0.00013698,2]
[340797987,1729848649050,-560.55,0.00013698,2]
[340797989,1729848649059,-699.73,0.00013698,2]
[340797991,1729848649069,-1052.83,0.00013698,2]
[340797993,1729848649080,-151.0,0.00013698,2]
[340797995,1729848649090,-151.0,0.00013698,2]
[340797997,1729848649100,-151.0,0.00013698,2]
[340797999,1729848649110,-151.0,0.00013698,2]
[340798001,1729848649120,-151.0,0.00013698,2]
[340798003,1729848649129,-151.0,0.00013698,2]
[340798005,1729848649139,-151.0,0.00013698,2]
[340798006,1729848649149,-214.989624,0.00013698,2]
[340798007,1729848649158,-151.0,0.00013698,2]
[340798008,1729848649168,-154.623413,0.00013698,2]
[340798009,1729848649179,-732.74,0.00013698,2]
[340798010,1729848649189,-1353.83,0.00013698,2]
[340798011,1729848649198,-950.1,0.00013698,2]
[340798012,1729848649208,-1146.95,0.00013698,2]
[340798013,1729848649217,-1152.05,0.00013698,2]
[340798014,1729848649227,-797.47,0.00013698,2]
[340798015,1729848649237,-520.47,0.00013698,2]
[340798016,1729848649248,-151.0,0.00013698,2]
[340798017,1729848649260,-151.0,0.00013698,2]
[340798018,1729848649270,-1331.73,0.00013698,2]
[340798019,1729848649281,-151.0,0.00013698,2]
[340798020,1729848649291,-151.0,0.00013698,2]
[340798021,1729848649300,-151.0,0.00013698,2]
[340798022,1729848649310,-151.0,0.00013698,2]
[340798023,1729848649319,-151.0,0.00013698,2]
[340798024,1729848649330,-151.0,0.00013698,2]
[340798025,1729848649339,-154.95727,0.00013698,2]
[340798026,1729848649349,-500.0,0.00013698,2]
[340798027,1729848649358,-500.0,0.00013698,2]
[340798028,1729848649368,-1415.03,0.00013698,2]
[340798029,1729848649377,-500.0,0.00013698,2]
[340798033,1729848649387,-500.0,0.00013698,2]
[340798035,1729848649608,-196.49455876,0.00013698,2]
[340798036,1729848649618,-151.0,0.00013698,2]
[340798038,1729848649628,-151.0,0.00013698,2]
[340798040,1729848649638,-151.0,0.00013698,2]
[340798042,1729848649647,-151.0,0.00013698,2]
[340798044,1729848649657,-151.0,0.00013698,2]
[340798046,1729848649666,-616.75,0.00013698,2]
[340798048,1729848649676,-151.0,0.00013698,2]
[340798049,1729848649686,-500.0,0.00013698,2]
[340798052,1729848649696,-902.92,0.00013698,2]
[340798054,1729848649706,-500.0,0.00013698,2]
[340798056,1729848649715,-1179.71,0.00013698,2]
[340798057,1729848649725,-500.0,0.00013698,2]
[340798059,1729848649735,-641.12,0.00013698,2]
[340798061,1729848649745,-863.86,0.00013698,2]
[340798063,1729848649754,-1078.67,0.00013698,2]
[340798065,1729848649764,-500.0,0.00013698,2]
[340798067,1729848649774,-500.0,0.00013698,2]
[340798068,1729848649783,-500.0,0.00013698,2]
[340798069,1729848649792,-2324.22,0.00013698,2]
[340798070,1729848649801,-2150.26521,0.00013698,2]
[340798071,1729848649811,-722.04,0.00013698,2]
[340798072,1729848649820,-852.14,0.00013698,2]
[340798073,1729848649831,-151.0,0.00013698,2]
[340798074,1729848649840,-151.0,0.00013698,2]
[340798075,1729848649849,-151.0,0.00013698,2]
[340798076,1729848649859,-151.0,0.00013698,2]
[340798077,1729848649868,-151.0,0.00013698,2]
[340798078,1729848649878,-151.0,0.00013698,2]
[340798079,1729848649887,-151.0,0.00013698,2]
[340798080,1729848649896,-151.0,0.00013698,2]
[340798081,1729848649906,-151.0,0.00013698,2]
[340798082,1729848649915,-151.0,0.00013698,2]
[340798083,1729848649925,-151.0,0.00013698,2]
[340798084,1729848649934,-796.23,0.00013698,2]
[340798085,1729848649943,-151.0,0.00013698,2]
[340798086,1729848649952,-151.0,0.00013698,2]
[340798087,1729848649962,-151.0,0.00013698,2]
[340798088,1729848649972,-151.0,0.00013698,2]
[340798089,1729848649982,-500.0,0.00013698,2]
[340798091,1729848649991,-151.0,0.00013698,2]
[340798093,1729848650001,-151.0,0.00013698,2]
[340798095,1729848650010,-248.575978,0.00013698,2]
[340798097,1729848650020,-151.0,0.00013698,2]
[340798099,1729848650029,-151.0,0.00013698,2]
[340798100,1729848650038,-151.0,0.00013698,2]
[340798102,1729848650048,-153.428923,0.00013698,2]
[340798104,1729848650058,-938.59,0.00013698,2]
[340798106,1729848650069,-500.0,0.00013698,2]
[340798108,1729848650080,-2203.78,0.00013698,2]
[340798110,1729848650090,-500.0,0.00013698,2]
[340798112,1729848650100,-151.0,0.00013698,2]
[340798114,1729848650109,-151.0,0.00013698,2]
[340798115,1729848650119,-151.0,0.00013698,2]
[340798117,1729848650128,-151.0,0.00013698,2]
[340798118,1729848650138,-151.0,0.00013698,2]
[340798120,1729848650147,-211.728703,0.00013698,2]
[340798122,1729848650157,-151.0,0.00013698,2]
[340798124,1729848650166,-151.0,0.00013698,2]
[340798126,1729848650176,-151.0,0.00013698,2]
[340798128,1729848650185,-151.0,0.00013698,2]
[340798130,1729848650195,-910.73,0.00013698,2]
[340798132,1729848650205,-151.0,0.00013698,2]
[340798133,1729848650214,-151.0,0.00013698,2]
[340798135,1729848650224,-151.0,0.00013698,2]
[340798137,1729848650234,-151.0,0.00013698,2]
[340798139,1729848650244,-151.0,0.00013698,2]
[340798141,1729848650257,-151.0,0.00013698,2]
[340798143,1729848650267,-151.0,0.00013698,2]
[340798145,1729848650278,-151.0,0.00013698,2]
[340798147,1729848650288,-151.0,0.00013698,2]
[340798149,1729848650301,-151.0,0.00013698,2]
[340798151,1729848650312,-151.0,0.00013698,2]
[340798152,1729848650321,-151.0,0.00013698,2]
[340798154,1729848650334,-1234.24,0.00013698,2]
[340798156,1729848650345,-278.904423,0.00013698,2]
[340798158,1729848650355,-151.0,0.00013698,2]
[340798159,1729848650365,-693.62,0.00013698,2]
[340798161,1729848650375,-151.0,0.00013698,2]
[340798164,1729848650386,-151.0,0.00013698,2]
[340798166,1729848650398,-290.27726149,0.00013698,2]
[340798168,1729848650408,-783.16,0.00013698,2]
[340798170,1729848650419,-683.3,0.00013698,2]
[340798172,1729848650429,-1337.15,0.00013698,2]
[340798174,1729848650440,-500.0,0.00013698,2]
[340798176,1729848650451,-757.680874,0.00013698,2]
[340798178,1729848650461,-757.680874,0.00013698,2]
[340798180,1729848650472,-757.680874,0.00013698,2]
[340798182,1729848650481,-757.680874,0.00013698,2]
[340798184,1729848650491,-757.680874,0.00013698,2]
[340798187,1729848650506,-757.680874,0.00013698,2]
[340798189,1729848650516,-483.99384547,0.00013698,2]
[340798213,1729848650738,-273.68702853,0.00013698,2]
[340798215,1729848650748,-352.99592745,0.00013698,2]
[340798217,1729848650761,-404.68494655,0.00013698,2]
[340798219,1729848650771,-757.680874,0.00013698,2]
[340798221,1729848650781,-757.680874,0.00013698,2]
[340798223,1729848650791,-757.680874,0.00013698,2]
[340798225,1729848650801,-757.680874,0.00013698,2]
[340798227,1729848650811,-554.40155745,0.00013698,2]
[340798267,1729849656547,1211.2779712,0.00010795,2]
[340798268,1729849664084,3000.0,0.0001071,2]
[340798269,1729849825258,235.218913,0.00010661,2]
[340798270,1729849825334,235.218913,0.0001069,2]
[340798271,1729849825550,235.218913,0.00010719,2]
[340798272,1729849825761,235.218913,0.00010748,2]
[340798273,1729849825980,235.218913,0.00010778,2]
[340798274,1729849826206,235.218913,0.00010807,2]
[340798275,1729849826442,235.218913,0.00010836,2]
[340798276,1729849826676,235.218913,0.00010865,2]
[340798277,1729849826871,235.218913,0.00010895,2]
[340798278,1729849827077,235.218913,0.00010924,2]
[340798279,1729849827303,235.218913,0.00010953,2]
[340798280,1729849827513,235.218913,0.00010982,2]
[340798281,1729849827886,235.218913,0.00011012,2]
[340798302,1729849832695,-250.0,0.00011037,2]
[340798303,1729849832706,-235.218913,0.00011041,2]
[340798304,1729849832715,-197.781087,0.0001107,2]
[340798313,1729849838670,-37.437826,0.0001107,2]
[340798315,1729849838681,-300.0,0.00011082,2]
[340798317,1729849838691,-300.0,0.00011082,2]
[340798319,1729849838701,-24880.0,0.00011083,2]
[340798321,1729849838711,-313.2237399,0.00011093,2]
[340798323,1729849838721,-235.218913,0.00011099,2]
[340798325,1729849838731,-235.218913,0.00011128,2]
[340798327,1729849838741,-235.218913,0.00011158,2]
[340798329,1729849838750,-235.218913,0.00011187,2]
[340798331,1729849838761,-1858.9729867,0.00011193,2]
[340798333,1729849838770,-235.218913,0.00011216,2]
[340798335,1729849838781,-211.71697486,0.00011945,2]
[340798337,1729849838791,-2604.7182993,0.00012005,2]
[340798339,1729849838800,-420.0,0.00012177,2]
[340798341,1729849838810,-420.0,0.0001219,2]
[340798344,1729849838820,-264.542389,0.000128,2]
[340798346,1729849838830,-679.36558666,0.0001298,2]
[340798348,1729849838841,-285.32304887,0.0001299,2]
[340798855,1729849844670,-376.9,0.0001299,2]
[340798857,1729849844684,-2734.60488443,0.0001299,2]
[340798859,1729849844694,-502.8428129,0.0001299,2]
[340798861,1729849844705,-3341.6975005,0.00013,2]
[340798863,1729849844716,-7015.493934,0.00013,2]
[340799003,1729849846656,-19711.8,0.00013,2]
[340799004,1729849846668,-662.8,0.00013,2]
[340799005,1729849846680,-262.0,0.00013,2]
[340799006,1729850100028,10000.0,0.00011013,2]
[340799007,1729850114618,4179.0,0.00022,60]
[340799011,1729850403711,500.0,0.0001,2]
[340799012,1729850862937,1320.8859143,0.00010898,2]
[340799013,1729850889850,3000.0,0.00010898,2]
[340799021,1729851031974,-194.03283152,0.00011504,2]